[Event "4NCL 2019-20"]
[Site "Daventry"]
[Date "2020.01.12"]
[Round "4"]
[White "O'Donnell, Conor"]
[Black "Wadsworth, Matthew J"]
[Result "0-1"]
[ECO "A65"]
[WhiteElo "2307"]
[BlackElo "2401"]
[Annotator "ChessBase"]
[PlyCount "60"]
[EventDate "2020.01.11"]
[EventCountry "ENG"]
[SourceTitle "playchess.com"]
[Source "ChessBase"]
[SourceQuality "1"]
[TimeControl "40/6000:3000+30"]

1. d4 {[%emt 0:00:00]} Nf6 {[%emt 0:00:00]} 2. c4 {[%emt 0:00:00]} c5 {[%emt 0:00:00]} 3. d5 {[%emt 0:00:00]} e6 {[%emt 0:00:00]} 4. Nc3 {[%emt 0:00:00]} exd5 {[%emt 0:00:00]} 5. cxd5 {[%emt 0:00:00]} d6 {[%emt 0:00:00]} 6. e4 {[%emt 0:00:00]} g6 {[%emt 0:00:00]} 7. Nge2 {[%emt 0:00:36]} Bg7 {[%emt 0:00:00]} 8. Ng3 {[%emt 0:00:00]} a6 {[%emt 0:00:00]} 9. a4 {[%emt 0:00:37]} Nbd7 {[%emt 0:00:00]} 10. Be2 {[%emt 0:00:19]} h5 {[%emt 0:00:00]} 11. O-O {[%emt 0:06:41]} h4 {[%emt 0:00:00]} 12. Nh1 {[%emt 0:00:00]} Nh5 {[%emt 0:00:00]} 13. Be3 {[%emt 0:02:23]} Qe7 {[%emt 0:07:49]} 14. Qd2 {[%emt 0:17:20]} Ne5 {[%emt 0:07:53]} 15. Bg5 {[%emt 0:06:24]} f6 {[%emt 0:03:40]} 16. Bxh4 {[%emt 0:02:55]} Bh6 {[%emt 0:00:00]} 17. Qc2 {[%emt 0:06:07]} Nf4 {[%emt 0:00:04]} 18. Rfe1 {[%emt 0:06:43]} Qh7 {[%emt 0:00:49]} 19. Bg3 {[%emt 0:07:27]} Bg5 {[%emt 0:00:48]} 20. f3 {[%emt 0:13:45]} Qh6 {[%emt 0:01:16]} 21. Bf1 {[%emt 0:04:52]} Bh4 {[%emt 0:01:05]} 22. Kf2 {[%emt 0:02:03]} c4 {[%emt 0:00:57]} 23. Rad1 {[%emt 0:01:34]} Qg5 {[%emt 0:04:37]} 24. Kg1 {[%emt 0:07:35]} Bxg3 {[%emt 0:03:11]} 25. hxg3 {[%emt 0:00:55]} Rxh1+ {[%emt 0:00:00]} 26. Kxh1 {[%emt 0:00:00]} Qxg3 {[%emt 0:00:00]} 27. b3 {[%emt 0:03:01]} Bd7 {[%emt 0:00:00]} 28. Bxc4 {[%emt 0:02:37]} Ke7 {[%emt 0:00:00]} 29. Re3 {[%emt 0:01:07]} Rh8+ {[%emt 0:00:00]} 30. Kg1 {[%emt 0:00:00]} Rh2 {[%emt 0:00:00]} 0-1

[Event "4NCL 2019-20"]
[Site "Daventry"]
[Date "2020.01.12"]
[Round "4"]
[White "Ciuksyte, Dagne"]
[Black "Jaufarally, Nadia"]
[Result "1-0"]
[ECO "B38"]
[WhiteElo "2295"]
[BlackElo "1932"]
[Annotator "ChessBase"]
[PlyCount "67"]
[EventDate "2020.01.11"]
[EventCountry "ENG"]
[SourceTitle "playchess.com"]
[Source "ChessBase"]
[SourceQuality "1"]
[TimeControl "40/6000:3000+30"]

1. e4 {[%emt 0:00:30]} c5 {[%emt 0:00:02]} 2. Nf3 {[%emt 0:00:02]} g6 {[%emt 0:00:50]} 3. d4 {[%emt 0:00:06]} cxd4 {[%emt 0:00:02]} 4. Nxd4 {[%emt 0:00:03]} Nc6 {[%emt 0:00:02]} 5. c4 {[%emt 0:00:05]} Bg7 {[%emt 0:00:23]} 6. Be3 {[%emt 0:00:04]} d6 {[%emt 0:00:02]} 7. Nc3 {[%emt 0:00:02]} Qb6 {[%emt 0:00:02]} 8. Ndb5 {[%emt 0:00:05]} Bxc3+ {[%emt 0:00:04]} 9. bxc3 {[%emt 0:00:04]} Qa5 {[%emt 0:00:06]} 10. Be2 {[%emt 0:00:03]} a6 {[%emt 0:00:02]} 11. Nd4 {[%emt 0:00:03]} Qxc3+ {[%emt 0:00:04]} 12. Kf1 {[%emt 0:00:05]} Ne5 {[%emt 0:00:03]} 13. Nb3 {[%emt 0:00:03]} Be6 {[%emt 0:00:02]} 14. c5 {[%emt 0:00:02]} Rd8 {[%emt 0:00:02]} 15. Rc1 {[%emt 0:00:02]} Qb4 {[%emt 0:00:05]} 16. cxd6 {[%emt 0:00:03]} Bxb3 {[%emt 0:00:04]} 17. axb3 {[%emt 0:00:05]} Qxd6 {[%emt 0:00:05]} 18. Qxd6 {[%emt 0:00:05]} Rxd6 {[%emt 0:00:02]} 19. f4 {[%emt 0:00:04]} Nc6 {[%emt 0:00:02]} 20. e5 {[%emt 0:00:02]} Rd7 {[%emt 0:00:02]} 21. Kf2 {[%emt 0:00:02]} Nh6 {[%emt 0:00:02]} 22. g4 {[%emt 0:00:03]} e6 {[%emt 0:00:05]} 23. h3 {[%emt 0:00:02]} Ng8 {[%emt 0:00:07]} 24. Bxa6 {[%emt 0:00:02]} Nxe5 {[%emt 0:00:07]} 25. Rc8+ {[%emt 0:00:04]} Rd8 {[%emt 0:00:02]} 26. Rxd8+ {[%emt 0:00:04]} Kxd8 {[%emt 0:00:03]} 27. Bxb7 {[%emt 0:00:03]} Nd7 {[%emt 0:00:04]} 28. Ra1 {[%emt 0:00:03]} Kc7 {[%emt 0:00:02]} 29. Bf3 {[%emt 0:00:03]} Ngf6 {[%emt 0:00:03]} 30. Ra7+ {[%emt 0:00:03]} Kd6 {[%emt 0:00:02]} 31. Bd4 {[%emt 0:00:02]} Rf8 {[%emt 0:00:03]} 32. Bb2 {[%emt 0:00:02]} Nd5 {[%emt 0:00:53]} 33. Ba3+ {[%emt 0:00:02]} Nc5 {[%emt 0:00:02]} 34. Ra6+ 1-0

[Event "4NCL 2019-20"]
[Site "Daventry"]
[Date "2020.01.12"]
[Round "4"]
[White "Kolbus, Dietmar"]
[Black "Regan, Natasha K"]
[Result "1-0"]
[ECO "A20"]
[WhiteElo "2294"]
[BlackElo "1956"]
[Annotator "ChessBase"]
[PlyCount "59"]
[EventDate "2020.01.11"]
[EventCountry "ENG"]
[SourceTitle "playchess.com"]
[Source "ChessBase"]
[SourceQuality "1"]
[TimeControl "40/6000:3000+30"]

1. c4 {[%emt 0:00:00]} e5 {[%emt 0:00:00]} 2. Nf3 {[%emt 0:00:00]} Nc6 {[%emt 0:01:22]} 3. d4 {[%emt 0:00:00]} e4 {[%emt 0:00:07]} 4. Nfd2 {[%emt 0:01:03]} f5 {[%emt 0:00:38]} 5. Nb3 {[%emt 0:00:56]} Nf6 {[%emt 0:00:41]} 6. Nc3 {[%emt 0:00:00]} a5 {[%emt 0:00:53]} 7. d5 {[%emt 0:00:47]} Ne5 {[%emt 0:01:03]} 8. Nd4 {[%emt 0:00:19]} g6 {[%emt 0:03:40]} 9. e3 {[%emt 0:01:32]} Nf7 {[%emt 0:04:56]} 10. Be2 {[%emt 0:00:34]} b6 {[%emt 0:03:58]} 11. b3 {[%emt 0:02:16]} h5 {[%emt 0:07:54]} 12. Bb2 {[%emt 0:03:45]} Bb7 {[%emt 0:08:39]} 13. Qd2 {[%emt 0:00:26]} Rc8 {[%emt 0:02:22]} 14. O-O-O {[%emt 0:00:05]} Qe7 {[%emt 0:04:28]} 15. Ndb5 {[%emt 0:02:54]} d6 {[%emt 0:06:02]} 16. Kb1 {[%emt 0:06:31]} Ng4 {[%emt 0:04:05]} 17. Rdf1 {[%emt 0:00:38]} Bh6 {[%emt 0:01:43]} 18. h3 {[%emt 0:00:13]} Nf6 {[%emt 0:01:11]} 19. Nd4 {[%emt 0:03:55]} Nd8 {[%emt 0:03:00]} 20. g4 {[%emt 0:04:19]} hxg4 {[%emt 0:05:38]} 21. hxg4 {[%emt 0:00:00]} Nxg4 {[%emt 0:00:28]} 22. Bxg4 {[%emt 0:00:00]} fxg4 {[%emt 0:00:00]} 23. Rhg1 {[%emt 0:00:00]} Nf7 {[%emt 0:06:47]} 24. Rxg4 {[%emt 0:02:09]} Ng5 {[%emt 0:00:32]} 25. Qc2 {[%emt 0:02:53]} Kd7 {[%emt 0:04:23]} 26. Nxe4 {[%emt 0:00:48]} Rhg8 {[%emt 0:05:34]} 27. Nxg5 {[%emt 0:00:33]} Bxg5 {[%emt 0:00:00]} 28. Rfg1 {[%emt 0:01:01]} Bh4 {[%emt 0:00:28]} 29. Nf5 {[%emt 0:00:32]} gxf5 {[%emt 0:00:53]} 30. Qxf5+ {[%emt 0:00:00]} 1-0

[Event "4NCL 2019-20"]
[Site "Daventry"]
[Date "2020.01.12"]
[Round "4"]
[White "Povah, Nigel E"]
[Black "York-Weaving, Richard"]
[Result "1/2-1/2"]
[ECO "B13"]
[WhiteElo "2284"]
[BlackElo "2335"]
[Annotator "ChessBase"]
[PlyCount "91"]
[EventDate "2020.01.11"]
[EventCountry "ENG"]
[SourceTitle "playchess.com"]
[Source "ChessBase"]
[SourceQuality "1"]
[TimeControl "40/6000:3000+30"]

1. d4 {[%emt 0:00:00]} Nf6 {[%emt 0:00:00]} 2. Bg5 {[%emt 0:00:00]} d5 {[%emt 0:00:00]} 3. Bxf6 {[%emt 0:00:14]} gxf6 {[%emt 0:00:00]} 4. c4 {[%emt 0:00:00]} c5 {[%emt 0:05:06]} 5. e3 {[%emt 0:01:45]} cxd4 {[%emt 0:05:08]} 6. exd4 {[%emt 0:00:12]} Nc6 {[%emt 0:01:31]} 7. Nc3 {[%emt 0:06:02]} dxc4 {[%emt 0:04:14]} 8. d5 {[%emt 0:01:31]} Ne5 {[%emt 0:02:56]} 9. Bxc4 {[%emt 0:02:07]} Nxc4 {[%emt 0:01:11]} 10. Qa4+ {[%emt 0:00:00]} Bd7 {[%emt 0:00:14]} 11. Qxc4 {[%emt 0:00:00]} Qb6 {[%emt 0:02:37]} 12. Nge2 {[%emt 0:00:32]} Rg8 {[%emt 0:09:31]} 13. O-O {[%emt 0:01:21]} Rg4 {[%emt 0:04:38]} 14. Qd3 {[%emt 0:01:38]} f5 {[%emt 0:02:04]} 15. a3 {[%emt 0:18:54]} h5 {[%emt 0:06:34]} 16. h3 {[%emt 0:01:30]} Rg5 {[%emt 0:02:07]} 17. Rfe1 {[%emt 0:02:26]} O-O-O {[%emt 0:04:11]} 18. Qc4+ {[%emt 0:07:07]} Qc7 {[%emt 0:00:00]} 19. Qh4 {[%emt 0:01:00]} Rg6 {[%emt 0:04:57]} 20. Rac1 {[%emt 0:01:08]} Kb8 {[%emt 0:06:25]} 21. Nb5 {[%emt 0:00:00]} Qb6 {[%emt 0:09:36]} 22. Qf4+ {[%emt 0:00:19]} Rd6 {[%emt 0:01:21]} 23. Nxd6 {[%emt 0:00:30]} exd6 {[%emt 0:00:17]} 24. Qd4 {[%emt 0:04:28]} Qxd4 {[%emt 0:00:09]} 25. Nxd4 {[%emt 0:00:00]} Bg7 {[%emt 0:00:00]} 26. Red1 {[%emt 0:00:51]} Re8 {[%emt 0:00:30]} 27. b3 {[%emt 0:07:24]} Re4 {[%emt 0:03:24]} 28. Rc4 {[%emt 0:00:35]} Bf6 {[%emt 0:03:24]} 29. a4 {[%emt 0:02:10]} a6 {[%emt 0:02:51]} 30. g3 {[%emt 0:03:44]} Re8 {[%emt 0:06:02]} 31. Nf3 {[%emt 0:03:31]} Re2 {[%emt 0:00:16]} 32. Rd2 {[%emt 0:00:43]} Re8 {[%emt 0:00:13]} 33. h4 {[%emt 0:01:06]} Rg8 {[%emt 0:02:51]} 34. Rdc2 {[%emt 0:02:28]} Bd8 {[%emt 0:00:00]} 35. Ng5 {[%emt 0:00:28]} Rg7 {[%emt 0:00:00]} 36. Nh3 {[%emt 0:01:20]} Bb6 {[%emt 0:01:46]} 37. Kg2 {[%emt 0:00:33]} Bd8 {[%emt 0:00:00]} 38. Nf4 {[%emt 0:00:00]} Rh7 {[%emt 0:00:00]} 39. Ne2 {[%emt 0:05:17]} Rg7 {[%emt 0:00:04]} 40. Kf3 {[%emt 0:02:25]} Rg8 {[%emt 0:00:51]} 41. Nf4 {[%emt 0:51:05]} Rh8 {[%emt 0:50:08]} 42. Ng2 {[%emt 0:00:28]} Re8 {[%emt 0:00:00]} 43. Ne3 {[%emt 0:00:00]} Re5 {[%emt 0:00:00]} 44. Ng2 {[%emt 0:00:00]} Rxd5 {[%emt 0:00:00]} 45. Nf4 {[%emt 0:00:00]} Re5 {[%emt 0:00:00]} 46. Nxh5 {[%emt 0:00:00]} 1/2-1/2

[Event "4NCL 2019-20"]
[Site "Daventry"]
[Date "2020.01.12"]
[Round "4"]
[White "Lund, D Brett"]
[Black "Horton, Andrew P"]
[Result "0-1"]
[ECO "B26"]
[WhiteElo "2265"]
[BlackElo "2380"]
[Annotator "ChessBase"]
[PlyCount "95"]
[EventDate "2020.01.11"]
[EventCountry "ENG"]
[SourceTitle "playchess.com"]
[Source "ChessBase"]
[SourceQuality "1"]
[TimeControl "40/6000:3000+30"]

1. g3 {[%emt 0:00:00]} c5 {[%emt 0:00:52]} 2. Bg2 {[%emt 0:00:00]} Nc6 {[%emt 0:00:00]} 3. d3 {[%emt 0:00:56]} g6 {[%emt 0:05:50]} 4. e4 {[%emt 0:00:50]} Bg7 {[%emt 0:00:00]} 5. Nc3 {[%emt 0:01:51]} e6 {[%emt 0:02:12]} 6. Be3 {[%emt 0:00:00]} d6 {[%emt 0:00:11]} 7. Qd2 {[%emt 0:00:00]} Rb8 {[%emt 0:01:57]} 8. f4 {[%emt 0:04:52]} Nge7 {[%emt 0:01:35]} 9. h4 {[%emt 0:06:49]} h5 {[%emt 0:05:52]} 10. Nf3 {[%emt 0:03:57]} Nd4 {[%emt 0:02:13]} 11. Ng5 {[%emt 0:01:57]} b5 {[%emt 0:08:11]} 12. Nd1 {[%emt 0:04:05]} b4 {[%emt 0:03:36]} 13. c3 {[%emt 0:01:04]} bxc3 {[%emt 0:02:17]} 14. bxc3 {[%emt 0:00:00]} Ndc6 {[%emt 0:01:27]} 15. O-O {[%emt 0:03:02]} Qa5 {[%emt 0:12:23]} 16. Rc1 {[%emt 0:03:42]} Bd7 {[%emt 0:03:47]} 17. Nf3 {[%emt 0:20:43]} O-O {[%emt 0:02:06]} 18. Bh3 {[%emt 0:08:24]} f5 {[%emt 0:31:49]} 19. Ng5 {[%emt 0:06:04]} Nd8 {[%emt 0:03:06]} 20. Re1 {[%emt 0:02:28]} Nf7 {[%emt 0:00:30]} 21. Nxf7 {[%emt 0:08:34]} Rxf7 {[%emt 0:00:00]} 22. Nf2 {[%emt 0:01:29]} d5 {[%emt 0:00:37]} 23. e5 {[%emt 0:02:26]} Rff8 {[%emt 0:00:57]} 24. Rb1 {[%emt 0:05:36]} Qc7 {[%emt 0:01:47]} 25. d4 {[%emt 0:02:09]} c4 {[%emt 0:00:02]} 26. Qc2 {[%emt 0:01:38]} Qa5 {[%emt 0:00:46]} 27. Bf1 {[%emt 0:01:18]} Rb6 {[%emt 0:01:06]} 28. Rxb6 {[%emt 0:00:45]} axb6 {[%emt 0:00:00]} 29. Rb1 {[%emt 0:02:50]} Ra8 {[%emt 0:00:00]} 30. Rb2 {[%emt 0:00:00]} Bf8 {[%emt 0:00:00]} 31. Bd2 {[%emt 0:00:00]} Nc8 {[%emt 0:00:49]} 32. Be1 {[%emt 0:00:00]} Ba3 {[%emt 0:00:30]} 33. Rb1 {[%emt 0:00:00]} Be7 {[%emt 0:00:16]} 34. Rb2 {[%emt 0:00:00]} Na7 {[%emt 0:00:00]} 35. Be2 {[%emt 0:00:00]} Nb5 {[%emt 0:00:00]} 36. Qd2 {[%emt 0:00:00]} Na7 {[%emt 0:00:20]} 37. Nd1 {[%emt 0:00:18]} Ba3 {[%emt 0:01:01]} 38. Rb1 {[%emt 0:00:00]} b5 {[%emt 0:00:30]} 39. Ne3 {[%emt 0:00:00]} Bf8 {[%emt 0:00:06]} 40. Rb2 {[%emt 0:00:35]} Nc6 {[%emt 0:00:27]} 41. Nc2 {[%emt 0:03:08]} Qb6 {[%emt 0:09:07]} 42. Bd1 {[%emt 0:05:17]} Ra5 {[%emt 0:02:10]} 43. Qf2 {[%emt 0:28:39]} Qa7 {[%emt 0:06:38]} 44. Ne3 {[%emt 0:00:24]} Ra3 {[%emt 0:09:57]} 45. Nf1 {[%emt 0:05:21]} b4 {[%emt 0:02:51]} 46. Rc2 {[%emt 0:01:33]} bxc3 {[%emt 0:01:19]} 47. Bxc3 {[%emt 0:00:07]} Bb4 {[%emt 0:01:09]} 48. Ba1 {[%emt 0:02:47]} 0-1

[Event "4NCL 2019-20"]
[Site "Daventry"]
[Date "2020.01.12"]
[Round "4"]
[White "Townsend, M Paul"]
[Black "Taylor, Adam C"]
[Result "1-0"]
[ECO "A36"]
[WhiteElo "2217"]
[BlackElo "2361"]
[Annotator "ChessBase"]
[PlyCount "65"]
[EventDate "2020.01.11"]
[EventCountry "ENG"]
[SourceTitle "playchess.com"]
[Source "ChessBase"]
[SourceQuality "1"]
[TimeControl "40/6000:3000+30"]

1. c4 {[%emt 0:00:00]} c5 {[%emt 0:00:00]} 2. g3 {[%emt 0:00:00]} Nc6 {[%emt 0:00:00]} 3. Bg2 {[%emt 0:00:00]} g6 {[%emt 0:00:00]} 4. Nc3 {[%emt 0:00:00]} Bg7 {[%emt 0:00:00]} 5. e3 {[%emt 0:00:00]} d6 {[%emt 0:08:39]} 6. Nge2 {[%emt 0:00:00]} Qd7 {[%emt 0:00:00]} 7. d4 {[%emt 0:08:46]} b6 {[%emt 0:00:00]} 8. O-O {[%emt 0:00:46]} Bb7 {[%emt 0:00:00]} 9. d5 {[%emt 0:01:29]} Na5 {[%emt 0:02:36]} 10. b3 {[%emt 0:05:31]} a6 {[%emt 0:04:25]} 11. Bb2 {[%emt 0:04:49]} b5 {[%emt 0:03:58]} 12. Na4 {[%emt 0:10:57]} Bxb2 {[%emt 0:02:11]} 13. Nxb2 {[%emt 0:00:00]} g5 {[%emt 0:01:35]} 14. e4 {[%emt 0:05:08]} g4 {[%emt 0:04:34]} 15. Qc2 {[%emt 0:06:40]} Nf6 {[%emt 0:00:36]} 16. Nd3 {[%emt 0:00:13]} Qc7 {[%emt 0:03:44]} 17. Nef4 {[%emt 0:02:23]} Rg8 {[%emt 0:05:48]} 18. Rfe1 {[%emt 0:02:55]} Nd7 {[%emt 0:00:00]} 19. Re3 {[%emt 0:03:17]} f6 {[%emt 0:04:31]} 20. h3 {[%emt 0:08:05]} h5 {[%emt 0:05:35]} 21. Nxh5 {[%emt 0:02:44]} gxh3 {[%emt 0:00:39]} 22. Bxh3 {[%emt 0:00:00]} Rh8 {[%emt 0:00:21]} 23. Nhf4 {[%emt 0:06:06]} Qb6 {[%emt 0:06:10]} 24. Bf5 {[%emt 0:06:21]} Ne5 {[%emt 0:06:49]} 25. Nxe5 {[%emt 0:01:40]} dxe5 {[%emt 0:01:03]} 26. Ng6 {[%emt 0:06:21]} Rh6 {[%emt 0:01:29]} 27. cxb5 {[%emt 0:00:05]} axb5 {[%emt 0:00:17]} 28. Rc1 {[%emt 0:00:00]} e6 {[%emt 0:00:01]} 29. dxe6 {[%emt 0:00:56]} c4 {[%emt 0:00:00]} 30. Qd2 {[%emt 0:01:22]} Rd8 {[%emt 0:00:40]} 31. Rd3 {[%emt 0:00:09]} Rxd3 {[%emt 0:03:36]} 32. Qxh6 {[%emt 0:00:00]} Rxg3+ {[%emt 0:00:00]} 33. Kf1 {[%emt 0:00:00]} 1-0

[Event "4NCL 2019-20"]
[Site "Daventry"]
[Date "2020.01.12"]
[Round "4"]
[White "McClement, Andrew"]
[Black "Skulte, Christopher"]
[Result "1/2-1/2"]
[ECO "C00"]
[WhiteElo "2215"]
[BlackElo "2033"]
[Annotator "ChessBase"]
[PlyCount "58"]
[EventDate "2020.01.11"]
[EventCountry "ENG"]
[SourceTitle "playchess.com"]
[Source "ChessBase"]
[SourceQuality "1"]
[TimeControl "40/6000:3000+30"]

1. e4 {[%emt 0:00:00]} e6 {[%emt 0:01:35]} 2. d3 {[%emt 0:02:35]} d5 {[%emt 0:01:49]} 3. Qe2 {[%emt 0:00:00]} Be7 {[%emt 0:00:39]} 4. g3 {[%emt 0:00:00]} c5 {[%emt 0:00:02]} 5. Bg2 {[%emt 0:00:00]} Nc6 {[%emt 0:00:00]} 6. Nf3 {[%emt 0:00:00]} Nf6 {[%emt 0:03:41]} 7. O-O {[%emt 0:00:00]} O-O {[%emt 0:00:21]} 8. e5 {[%emt 0:00:00]} Nd7 {[%emt 0:00:03]} 9. h4 {[%emt 0:00:00]} b5 {[%emt 0:04:58]} 10. Bf4 {[%emt 0:00:00]} a5 {[%emt 0:03:13]} 11. Nbd2 {[%emt 0:00:00]} b4 {[%emt 0:08:49]} 12. c4 {[%emt 0:03:24]} bxc3 {[%emt 0:02:23]} 13. bxc3 {[%emt 0:07:18]} Ba6 {[%emt 0:02:09]} 14. c4 {[%emt 0:00:22]} Nb6 {[%emt 0:04:01]} 15. Rfc1 {[%emt 0:00:07]} Rb8 {[%emt 0:05:41]} 16. Nb3 {[%emt 0:09:06]} a4 {[%emt 0:03:20]} 17. cxd5 {[%emt 0:00:25]} axb3 {[%emt 0:14:38]} 18. axb3 {[%emt 0:00:00]} Nb4 {[%emt 0:05:24]} 19. d6 {[%emt 0:00:18]} Bxd3 {[%emt 0:03:48]} 20. Qd2 {[%emt 0:23:02]} N6d5 {[%emt 0:08:03]} 21. Rxc5 {[%emt 0:20:57]} Nxf4 {[%emt 0:06:24]} 22. Qxf4 {[%emt 0:00:00]} Bxd6 {[%emt 0:00:36]} 23. exd6 {[%emt 0:00:00]} Rb6 {[%emt 0:00:00]} 24. d7 {[%emt 0:15:30]} Qxd7 {[%emt 0:00:00]} 25. Rc7 {[%emt 0:00:39]} Qd6 {[%emt 0:00:43]} 26. Qxd6 {[%emt 0:00:00]} Rxd6 {[%emt 0:00:00]} 27. Ne5 {[%emt 0:00:00]} Bg6 {[%emt 0:06:56]} 28. Bf3 {[%emt 0:03:08]} Nd5 {[%emt 0:02:33]} 29. Rb7 {[%emt 0:00:00]} Nf6 {[%emt 0:03:09]} 1/2-1/2

[Event "4NCL 2019-20"]
[Site "Daventry"]
[Date "2020.01.12"]
[Round "4"]
[White "Mitchell, Martin"]
[Black "Abbas, Daniel"]
[Result "0-1"]
[ECO "E46"]
[WhiteElo "2207"]
[BlackElo "2251"]
[Annotator "ChessBase"]
[PlyCount "40"]
[EventDate "2020.01.11"]
[EventCountry "ENG"]
[SourceTitle "playchess.com"]
[Source "ChessBase"]
[SourceQuality "1"]
[TimeControl "40/6000:3000+30"]

1. d4 {[%emt 0:00:00]} Nf6 {[%emt 0:00:00]} 2. c4 {[%emt 0:00:00]} e6 {[%emt 0:00:00]} 3. Nc3 {[%emt 0:00:00]} Bb4 {[%emt 0:00:00]} 4. e3 {[%emt 0:00:00]} O-O {[%emt 0:00:00]} 5. Nge2 {[%emt 0:01:11]} d5 {[%emt 0:00:15]} 6. Ng3 {[%emt 0:04:43]} c5 {[%emt 0:06:51]} 7. dxc5 {[%emt 0:08:59]} Nc6 {[%emt 0:03:46]} 8. cxd5 {[%emt 0:09:17]} exd5 {[%emt 0:06:48]} 9. Bd3 {[%emt 0:04:22]} Bg4 {[%emt 0:06:16]} 10. f3 {[%emt 0:04:17]} d4 {[%emt 0:14:30]} 11. exd4 {[%emt 0:03:43]} Qxd4 {[%emt 0:00:00]} 12. Qc2 {[%emt 0:14:47]} Rfe8+ {[%emt 0:12:58]} 13. Kf1 {[%emt 0:06:32]} Qe5 {[%emt 0:14:12]} 14. Bd2 {[%emt 0:03:26]} Nd4 {[%emt 0:01:04]} 15. Qc1 {[%emt 0:08:07]} Nxf3 {[%emt 0:01:37]} 16. Bf4 {[%emt 0:01:03]} Qd4 {[%emt 0:00:23]} 17. Be2 {[%emt 0:04:14]} Bxc5 {[%emt 0:00:47]} 18. Nd1 {[%emt 0:00:00]} Nxh2+ {[%emt 0:02:50]} 19. Ke1 {[%emt 0:00:00]} Bb4+ {[%emt 0:00:24]} 20. Nc3 {[%emt 0:00:20]} Nd5 {[%emt 0:03:29]} 0-1

[Event "4NCL 2019-20"]
[Site "Daventry"]
[Date "2020.01.12"]
[Round "4"]
[White "Horton, Jamie A"]
[Black "Carleton, John J"]
[Result "1-0"]
[ECO "D38"]
[WhiteElo "2202"]
[BlackElo "2238"]
[Annotator "ChessBase"]
[PlyCount "97"]
[EventDate "2020.01.11"]
[EventCountry "ENG"]
[SourceTitle "playchess.com"]
[Source "ChessBase"]
[SourceQuality "1"]
[TimeControl "40/6000:3000+30"]

1. d4 {[%emt 0:00:11]} d5 {[%emt 0:00:20]} 2. c4 {[%emt 0:00:07]} e6 {[%emt 0:00:09]} 3. Nc3 {[%emt 0:00:05]} Bb4 {[%emt 0:00:11]} 4. Nf3 {[%emt 0:00:08]} Nf6 {[%emt 0:00:10]} 5. Bg5 {[%emt 0:00:18]} h6 {[%emt 0:02:29]} 6. Bxf6 {[%emt 0:01:30]} Qxf6 {[%emt 0:02:39]} 7. e3 {[%emt 0:00:29]} c5 {[%emt 0:04:38]} 8. cxd5 {[%emt 0:01:42]} exd5 {[%emt 0:00:16]} 9. Be2 {[%emt 0:00:25]} cxd4 {[%emt 0:04:23]} 10. Qxd4 {[%emt 0:01:22]} Qxd4 {[%emt 0:00:25]} 11. Nxd4 {[%emt 0:00:02]} Nc6 {[%emt 0:06:13]} 12. Ndb5 {[%emt 0:10:49]} Ba5 {[%emt 0:00:10]} 13. O-O {[%emt 0:04:22]} Be6 {[%emt 0:05:51]} 14. Rfd1 {[%emt 0:29:47]} Rd8 {[%emt 0:07:25]} 15. Bf3 {[%emt 0:02:55]} a6 {[%emt 0:02:31]} 16. Nd4 {[%emt 0:00:07]} Bxc3 {[%emt 0:09:27]} 17. bxc3 {[%emt 0:00:02]} O-O {[%emt 0:01:33]} 18. Rab1 {[%emt 0:16:06]} Nxd4 {[%emt 0:03:35]} 19. cxd4 {[%emt 0:19:10]} b5 {[%emt 0:02:15]} 20. Rbc1 {[%emt 0:00:49]} Rb8 {[%emt 0:05:36]} 21. Rc5 {[%emt 0:03:46]} Rfd8 {[%emt 0:01:29]} 22. g4 {[%emt 0:02:04]} Rd6 {[%emt 0:09:03]} 23. Rdc1 {[%emt 0:01:09]} a5 {[%emt 0:19:11]} 24. Rb1 {[%emt 0:03:08]} Bxg4 {[%emt 0:05:52]} 25. Bxg4 {[%emt 0:04:46]} Rg6 {[%emt 0:00:06]} 26. h3 {[%emt 0:02:01]} h5 {[%emt 0:00:30]} 27. Rbxb5 {[%emt 0:00:08]} Rxb5 {[%emt 0:01:00]} 28. Rxb5 {[%emt 0:00:01]} hxg4 {[%emt 0:00:07]} 29. hxg4 {[%emt 0:00:17]} Rxg4+ {[%emt 0:00:24]} 30. Kf1 {[%emt 0:00:06]} Rg6 {[%emt 0:02:07]} 31. Rxd5 {[%emt 0:01:18]} Ra6 {[%emt 0:00:51]} 32. a4 {[%emt 0:00:14]} g6 {[%emt 0:05:42]} 33. Rd7 {[%emt 0:00:39]} Kg7 {[%emt 0:00:27]} 34. Ke2 {[%emt 0:00:11]} Kf6 {[%emt 0:00:09]} 35. Kd3 {[%emt 0:00:18]} Ke6 {[%emt 0:00:19]} 36. Rb7 {[%emt 0:00:05]} f5 {[%emt 0:01:42]} 37. f3 {[%emt 0:02:30]} Rc6 {[%emt 0:05:44]} 38. Ra7 {[%emt 0:01:42]} Rc1 {[%emt 0:00:12]} 39. Ra6+ {[%emt 0:00:08]} Kf7 {[%emt 0:00:28]} 40. Ra7+ {[%emt 0:01:36]} Ke6 {[%emt 0:01:58]} 41. Rxa5 {[%emt 0:22:12]} Rd1+ {[%emt 0:08:53]} 42. Kc4 {[%emt 0:02:57]} Rc1+ {[%emt 0:03:42]} 43. Kb4 {[%emt 0:01:57]} Rb1+ {[%emt 0:01:11]} 44. Kc3 {[%emt 0:09:12]} Rc1+ {[%emt 0:14:44]} 45. Kb2 {[%emt 0:00:23]} Rg1 {[%emt 0:04:17]} 46. f4 {[%emt 0:02:49]} g5 {[%emt 0:03:44]} 47. Re5+ {[%emt 0:01:45]} Kf6 {[%emt 0:00:07]} 48. fxg5+ {[%emt 0:00:14]} Rxg5 {[%emt 0:00:38]} 49. a5 {[%emt 0:00:11]} 1-0